bitfinex/quotes_ETHUSD_20260308
["timestamp","ask_amount","ask_price","bid_price","bid_amount"]
[1772938541728,1.76576942,1945.9,1945.2,0.0011]
[1772938541894,1.28567216,1946.1,1945.5,0.0011]
[1772938542098,3.05044158,1946.1,1945.5,0.0011]
[1772938542401,1.76476942,1946.0,1945.5,0.0011]
[1772938543223,1.28567216,1946.1,1945.5,1.69795694]
[1772938543626,0.001,1946.1,1945.6,1.28495065]
[1772938543799,0.001,1946.1,1945.6,2.98180759]
[1772938544925,0.001,1946.1,1945.6,1.69685694]
[1772938545829,0.001,1946.1,1945.6,2.98180121]
[1772938547334,1.76576942,1946.1,1945.5,0.0011]
[1772938547702,3.04945595,1946.0,1945.5,0.0011]
[1772938548305,1.28468653,1946.0,1945.5,0.0011]
[1772938549816,3.04945595,1946.0,1945.5,0.0011]
[1772938553842,3.04945595,1946.0,1945.6,0.0011]
[1772938554043,0.001,1945.9,1945.6,0.0011]
[1772938555640,0.001,1945.9,1945.6,1.69795694]
[1772938555841,1.28566681,1946.1,1945.7,1.69685694]
[1772938556012,0.001,1946.1,1945.7,1.69685694]
[1772938556608,1.28563563,1946.1,1945.7,1.69685694]
[1772938557209,0.001,1946.1,1945.7,1.69685694]
[1772938557828,0.001,1946.1,1945.7,1.28483114]
[1772938558042,0.001,1946.1,1945.8,1.69685694]
[1772938560145,0.001,1946.1,1945.8,2.98163988]
[1772938560550,0.001,1946.1,1945.8,1.69685694]
[1772938560748,0.001,1946.1,1945.9,1.69685694]
[1772938561975,0.85203021,1946.3,1945.9,1.69685694]
[1772938562255,6.90169689,1946.7,1946.1,1.64423968]
[1772938562256,1.28426719,1946.7,1946.1,1.64423968]
[1772938562447,6.87087263,1946.9,1946.2,2.49743233]
[1772938562448,1.28409562,1946.9,1946.2,2.49743233]
[1772938562651,1.28409562,1946.9,1946.3,1.67586325]
[1772938562861,2.95326563,1946.9,1946.3,1.67586325]
[1772938563462,1.28409562,1946.9,1946.3,1.67586325]
[1772938564057,1.28409562,1946.9,1945.5,0.0011]
[1772938564260,1.95209292,1946.6,1945.7,2.51188461]
[1772938565740,1.28409266,1946.9,1945.7,2.51188461]
[1772938566050,3.23618558,1946.9,1945.7,2.51188461]
[1772938567162,0.001,1946.8,1945.7,2.51188461]
[1772938567463,0.001,1946.8,1945.8,0.065536]
[1772938568381,0.001,1946.8,1945.9,1.28475255]
[1772938568982,1.95209292,1947.3,1946.0,0.065536]
[1772938569278,1.95209292,1947.3,1946.1,1.225]
[1772938570383,3.23598774,1947.2,1946.3,1.28448851]
[1772938571285,1.95209292,1947.0,1946.1,1.226]
[1772938572474,1.95209292,1947.0,1946.2,1.28455451]
[1772938572475,1.95209292,1946.8,1946.2,1.28455451]
[1772938573450,1.95209292,1946.8,1946.1,2.51057253]
[1772938573650,1.95209292,1946.8,1946.1,1.226]
[1772938573884,1.95209292,1946.8,1946.1,2.51058863]
[1772938574879,1.28422458,1946.7,1946.1,2.51058863]
[1772938575096,1.95209292,1946.6,1946.0,0.00153886]
[1772938575280,1.95209292,1946.6,1946.0,1.22853886]
[1772938576182,1.95209292,1946.6,1946.0,2.51315987]
[1772938576391,1.95209292,1946.9,1946.0,2.51315987]
[1772938576758,3.2361864,1946.9,1946.0,2.51315987]
[1772938578381,1.95209292,1946.8,1946.0,2.51315987]
[1772938578782,1.95209292,1946.8,1946.1,0.0011]
[1772938578969,1.95209292,1946.7,1946.1,0.0011]
[1772938581005,1.28429055,1946.6,1946.1,0.0011]
[1772938581161,3.236321,1946.7,1946.1,0.0011]
[1772938581366,1.95209292,1946.6,1946.1,0.0011]
[1772938583294,1.95209292,1946.4,1946.1,0.0011]
[1772938584167,1.95209292,1946.4,1945.8,0.0011]
[1772938585100,1.95209292,1946.4,1945.8,1.28589768]
[1772938585388,1.95209292,1946.3,1945.8,0.0011]
[1772938587890,1.284431,1946.4,1945.8,0.0011]
[1772938588392,3.23652392,1946.4,1945.8,0.0011]
[1772938588562,1.95209292,1946.3,1945.8,0.0011]
[1772938590793,3.23659579,1946.3,1945.8,0.0011]
[1772938590998,1.95209292,1946.2,1945.8,0.0011]
[1772938592666,1.95209292,1946.2,1945.9,0.0011]
[1772938592861,1.95209292,1946.0,1945.6,0.0011]
[1772938594783,1.95209292,1945.8,1945.6,0.0011]
[1772938595887,1.95209292,1946.3,1945.6,0.0011]
[1772938596988,1.95209292,1946.1,1945.6,0.0011]
[1772938599181,1.95209292,1946.1,1945.0,0.00263886]
[1772938599406,1.95209292,1946.1,1944.7,0.0011]
[1772938599407,1.95154292,1945.6,1944.7,1.28660279]
[1772938600111,1.95154292,1945.6,1944.8,1.215]
[1772938601433,3.23655391,1945.6,1944.9,1.28541313]
[1772938602710,1.95154292,1945.5,1944.9,1.28541313]
[1772938603010,1.95154292,1945.5,1944.8,1.215]
[1772938603182,1.95154292,1945.5,1944.7,1.28660551]
[1772938603376,1.95154292,1945.5,1944.7,0.0011]
[1772938603377,1.95154292,1945.3,1944.7,0.0011]
[1772938603577,1.95154292,1944.9,1943.7,0.0011]
[1772938603777,1.95154292,1944.3,1943.6,1.28926493]
[1772938603992,1.79561965,1944.6,1942.4,1.2031]
[1772938603993,1.95154292,1943.9,1942.4,1.2031]
[1772938604191,1.95154292,1943.5,1942.8,1.28679147]
[1772938604394,1.95154292,1943.5,1942.4,0.0011]
[1772938604594,1.95154292,1943.5,1942.0,0.35285468]
[1772938604595,1.95099292,1942.7,1942.0,0.00153886]
[1772938604777,1.95099292,1942.4,1941.4,1.29072652]
[1772938605181,0.25874474,1943.0,1941.5,1.92097117]
[1772938605387,0.25874474,1943.0,1941.7,1.85661829]
[1772938605587,2.10100938,1943.0,1941.7,1.85661829]
[1772938605987,2.10100938,1943.0,1941.8,1.192]
[1772938606724,2.10100938,1943.0,1941.9,1.194]
[1772938607500,2.10100938,1943.0,1942.0,1.28733264]
[1772938608286,1.84226464,1942.8,1941.5,1.28766417]
[1772938608503,1.91752658,1942.8,1941.5,1.28766417]
[1772938609024,0.70003034,1942.7,1941.6,1.88172862]
[1772938609319,1.84226464,1942.6,1941.6,1.2]
[1772938609494,1.84226464,1942.6,1941.7,1.28753154]
[1772938610308,1.84226464,1942.5,1941.7,1.28753154]
[1772938610513,1.84226464,1942.5,1941.4,0.003]
[1772938610514,1.84226464,1941.8,1941.4,0.003]
[1772938610911,2.19924825,1942.2,1941.4,1.2907187]
[1772938611122,1.84226464,1942.2,1941.4,1.2907187]
[1772938611291,1.84226464,1942.6,1941.4,1.2907187]
[1772938611491,1.84226464,1942.4,1941.4,1.2907187]
[1772938612922,0.35334427,1942.5,1941.4,0.003]
[1772938612923,1.84226464,1942.2,1941.4,0.003]
[1772938613504,1.84226464,1942.0,1941.4,0.003]
[1772938613908,1.84226464,1941.8,1941.4,0.003]
[1772938615100,1.84226464,1942.1,1941.4,0.003]
[1772938615500,1.84226464,1942.1,1940.7,0.003]
[1772938615501,1.84226464,1941.3,1940.7,0.003]
[1772938615700,1.84226464,1941.2,1940.7,0.003]
[1772938617529,1.28766417,1941.5,1940.7,0.003]
[1772938617697,3.12992881,1941.5,1940.7,0.003]
[1772938618134,1.79561965,1941.4,1940.7,0.003]
[1772938618303,3.12992881,1941.5,1940.7,0.003]
[1772938619631,1.84226464,1941.4,1940.7,0.003]
[1772938620202,1.84226464,1940.7,1940.1,0.84969842]
[1772938620405,1.84226464,1940.3,1939.4,1.291992]
[1772938621335,1.84226464,1940.7,1939.4,4.37372062]
[1772938621545,0.00153886,1941.0,1939.5,1.88172862]
[1772938621701,1.28953473,1941.0,1939.7,1.88172862]
[1772938621906,1.28953473,1941.0,1939.6,2.48992555]
[1772938621907,1.84226464,1940.9,1939.6,2.48992555]
[1772938622123,3.63788429,1940.6,1939.6,2.48992555]
[1772938622315,1.93946705,1940.5,1939.6,2.48992555]
[1772938622520,1.93946705,1940.5,1939.5,1.2889707]
[1772938622922,1.79561965,1940.6,1939.0,7.07253218]
[1772938622923,1.93946705,1939.9,1939.0,1.29085777]
[1772938623150,1.93946705,1939.6,1939.0,0.00153886]
[1772938623706,1.93946705,1939.6,1938.4,1.28965695]
[1772938623707,1.93946705,1939.3,1938.4,1.28965695]
[1772938624010,1.28897092,1939.6,1938.2,1.9142183]
[1772938625041,0.00153886,1940.0,1938.4,1.9142183]
[1772938625337,0.00153886,1940.0,1938.6,1.9142183]
[1772938625507,0.00153886,1940.0,1938.8,1.9142183]
[1772938625706,0.00153886,1940.0,1939.0,1.9142183]
[1772938627759,0.00153886,1940.0,1939.2,1.9142183]
[1772938627926,1.93946705,1940.9,1939.3,1.9142183]
[1772938628132,1.28953839,1941.0,1939.3,1.9142183]
[1772938628347,1.28953845,1941.0,1939.3,1.9142183]
[1772938628553,0.00153886,1941.0,1939.3,1.9142183]
[1772938629129,1.93946705,1940.5,1939.3,1.9142183]
[1772938629346,0.001,1939.9,1939.4,1.204]
[1772938629548,1.93946705,1940.5,1939.4,1.204]
[1772938629753,1.93946705,1940.9,1939.5,1.288992]
[1772938629939,1.93946705,1940.9,1939.5,3.2032103]
[1772938630963,1.93946705,1940.9,1939.6,1.9142183]
[1772938631660,0.00153886,1941.0,1939.6,1.9142183]
[1772938631844,0.00153886,1941.0,1939.8,1.9142183]
[1772938633957,1.28953473,1941.0,1939.9,3.20294452]
[1772938634158,0.00153886,1941.0,1939.9,3.20294452]
[1772938634854,0.00153886,1941.0,1940.0,1.9142183]
[1772938636355,0.00153886,1941.0,1940.1,1.28859337]
[1772938636356,3.74745306,1940.8,1940.1,1.28859337]
[1772938636545,3.74745306,1940.5,1939.8,1.28879265]
[1772938637152,1.93946705,1940.5,1939.8,1.28879265]
[1772938637859,1.93946705,1940.9,1939.8,3.20301095]
[1772938638075,1.93946705,1940.9,1939.8,1.28879265]
[1772938638472,3.22759565,1940.8,1939.9,1.207]
[1772938638852,3.22759565,1940.8,1940.0,1.207]
[1772938639082,3.74745306,1940.2,1939.5,2.496992]
[1772938639242,3.74745306,1940.5,1939.5,2.496992]
[1772938640146,1.93946705,1940.5,1939.5,2.496992]
[1772938641488,1.28839414,1940.4,1939.6,0.0011]
[1772938641672,3.22786119,1940.4,1939.7,1.208]
[1772938641880,0.001,1940.1,1939.7,1.208]
[1772938643653,0.001,1940.1,1939.8,1.208]
[1772938645585,0.001,1940.1,1939.9,1.28872622]
[1772938649361,3.22771304,1940.7,1939.9,1.28872622]
[1772938651493,1.93946705,1940.6,1939.9,1.28872622]
[1772938651879,1.28832775,1940.5,1939.9,1.28872622]
[1772938652080,3.22775523,1940.6,1939.9,1.28872622]
[1772938652889,1.28828818,1940.6,1939.9,1.28872622]
[1772938653066,6.95200811,1940.8,1939.9,1.28872622]
[1772938654023,0.001,1940.6,1939.9,1.28872622]
[1772938656988,0.001,1940.6,1939.9,3.14881716]
[1772938657192,0.001,1940.6,1940.0,1.86009094]
[1772938657596,0.001,1940.6,1940.1,1.28859337]
[1772938659180,0.001,1940.6,1940.1,3.14868431]
[1772938660475,0.001,1940.6,1940.2,1.86009094]
[1772938662602,0.001,1940.6,1940.3,1.28846054]
[1772938662799,0.001,1940.6,1940.4,0.42201456]
[1772938665406,0.001,1940.6,1940.4,1.71035853]
[1772938665703,0.001,1940.5,1940.4,1.71035853]
[1772938672013,0.001,1940.5,1940.4,3.57044947]
[1772938672911,0.001,1940.5,1940.4,0.42201456]
[1772938673114,0.001,1940.5,1940.4,1.7104087]
[1772938674114,0.001,1940.5,1940.4,1.28839414]
[1772938674319,0.001,1940.5,1940.4,2.50639414]
[1772938675894,0.001,1940.5,1940.4,2.50739414]
[1772938676927,1.80084132,1941.0,1940.4,2.50739414]
[1772938677332,1.79930246,1940.9,1940.4,2.50739414]
[1772938677541,1.79930246,1940.9,1940.5,1.219]
[1772938678187,1.79930246,1940.9,1940.6,1.219]
[1772938681392,1.79930246,1940.9,1940.7,1.221]
[1772938681592,3.08736933,1940.9,1940.7,1.221]
[1772938681792,1.79930246,1940.8,1940.7,1.221]
[1772938683806,1.79930246,1940.8,1940.2,0.0011]
[1772938683807,1.83402129,1940.7,1940.2,0.0011]
[1772938684527,1.83402129,1940.7,1940.3,1.222]
[1772938685321,1.83402129,1940.9,1940.3,3.14676814]
[1772938685525,3.12208534,1940.9,1940.4,0.0022]
[1772938685711,1.83402129,1940.9,1940.4,0.0022]
[1772938685916,1.83402129,1940.9,1940.4,1.29059414]
[1772938686317,3.12208632,1940.9,1940.4,1.29059414]
[1772938687227,3.12208632,1940.9,1940.5,0.0022]
[1772938687434,3.12208632,1940.9,1940.3,4.43522625]
[1772938687926,3.12208632,1940.9,1940.3,1.222]
[1772938688136,1.83402129,1940.8,1940.4,0.0022]
[1772938688344,1.83402129,1940.8,1940.3,2.51045576]
[1772938688501,1.83402129,1940.8,1940.4,0.0022]
[1772938688827,1.83402129,1940.8,1940.2,1.28958315]
[1772938689028,1.83402129,1940.8,1940.3,1.223]
[1772938689232,1.83402129,1940.8,1940.3,1.2252]
[1772938690241,1.83402129,1940.7,1940.2,1.2896237]
[1772938690537,1.83402129,1940.7,1940.4,1.223]
[1772938690741,1.28918759,1940.8,1940.4,1.223]
[1772938691110,1.28913095,1940.8,1940.4,1.223]
[1772938692047,1.28913095,1940.8,1940.5,1.224]
[1772938692538,1.28913095,1940.8,1940.3,0.0011]
[1772938692730,1.28913095,1940.8,1940.4,1.224]
[1772938692912,1.83502129,1940.8,1940.5,1.224]
[1772938694427,1.83502129,1940.8,1940.3,0.0011]
[1772938694743,1.28819498,1940.7,1940.4,1.225]
[1772938695214,3.12320032,1940.8,1940.4,1.225]
[1772938695945,3.12315399,1940.8,1940.4,2.51339129]
[1772938696244,3.12315399,1940.8,1940.4,1.225]
[1772938696615,1.83502129,1940.8,1940.4,1.225]
[1772938696814,3.12316872,1940.8,1940.4,1.225]
[1772938697747,3.12316872,1940.8,1940.4,2.51338587]
[1772938697946,3.12316872,1940.8,1940.4,1.225]
[1772938698443,3.12316872,1940.8,1940.3,1.28951129]
[1772938698444,3.12316872,1940.8,1940.3,1.28955375]
[1772938698649,3.12316872,1940.8,1940.5,1.225]
[1772938698845,0.001,1940.8,1940.5,2.51332521]
[1772938699069,0.001,1940.8,1940.5,4.43809335]
[1772938699252,0.001,1940.8,1940.5,3.14976814]
[1772938699432,0.001,1940.8,1940.5,4.43808969]
[1772938700339,0.001,1940.8,1940.5,3.14976814]
[1772938700522,0.001,1940.8,1940.5,2.51332295]
[1772938702548,0.001,1940.7,1940.5,2.51332295]
[1772938703862,0.001,1940.7,1940.5,2.51332663]
[1772938705040,0.001,1940.7,1940.5,4.43809477]
[1772938706459,0.001,1940.7,1940.6,1.92476814]
[1772938709558,0.001,1940.7,1940.6,3.2130295]
[1772938709731,0.00153886,1942.0,1940.7,1.92476814]
[1772938710129,0.00253886,1942.0,1940.7,2.20991151]
[1772938711762,0.00253886,1942.0,1940.9,1.92476814]
[1772938711958,0.00253886,1942.0,1941.1,1.92476814]
[1772938713329,1.64034744,1942.5,1941.2,1.75974225]
[1772938713530,1.64034744,1942.5,1941.2,1.76074225]
[1772938713729,1.64034744,1942.5,1941.4,1.75974225]
[1772938714028,0.35334427,1942.5,1941.6,1.75974225]
[1772938714229,0.35334427,1942.5,1941.8,1.75974225]
[1772938714848,0.35334427,1942.5,1942.0,1.75974225]
[1772938715060,0.35334427,1942.5,1942.2,1.75974225]
[1772938715764,0.001,1942.6,1942.2,3.04688058]
[1772938719650,0.001,1942.6,1942.3,1.75974225]
[1772938720445,0.001,1942.6,1942.4,1.28706754]
[1772938720959,0.00153886,1943.0,1942.5,1.76074225]
[1772938721157,0.00153886,1943.0,1942.2,5.14827018]
[1772938721158,1.87511058,1942.9,1942.2,1.28715504]
[1772938721341,1.87511058,1942.9,1942.5,1.231]
[1772938721540,1.28821918,1943.0,1942.5,1.231]
[1772938721742,1.28821918,1943.0,1942.5,1.232]
[1772938721943,0.00153886,1943.0,1942.6,0.001]
[1772938722142,1.2882131,1943.0,1942.6,0.001]
[1772938722474,0.00153886,1943.0,1942.6,1.76074225]
[1772938722642,0.00153886,1943.0,1942.6,3.04764375]
[1772938723059,0.00153886,1943.0,1942.6,1.76074225]
[1772938723344,1.87664944,1943.0,1942.5,1.231]
[1772938723541,1.87664944,1943.0,1942.5,1.232]
[1772938725071,1.28673632,1942.9,1942.5,1.232]
[1772938727556,0.001,1942.8,1942.5,1.232]
[1772938728572,0.001,1942.8,1942.6,0.001]
[1772938729146,0.001,1942.8,1942.7,0.001]
[1772938729361,0.001,1942.8,1942.6,0.001]
[1772938729573,0.001,1942.8,1942.5,4.2777388]
[1772938729777,0.001,1942.8,1941.9,1.75974225]
[1772938729778,1.87611058,1942.8,1941.9,1.75974225]
[1772938730082,1.87611058,1942.8,1941.2,1.541]
[1772938730083,1.87511058,1941.8,1940.4,0.0011]
[1772938730283,1.87511058,1941.2,1940.5,0.00693886]
[1772938730440,0.7441484,1941.1,1940.5,0.0011]
[1772938730644,1.87511058,1941.0,1940.5,0.00693886]
[1772938730843,0.7441484,1940.9,1940.5,0.00693886]
[1772938731386,1.28798349,1941.1,1940.4,2.49348985]
[1772938731943,1.28791308,1941.2,1940.4,4.2532321]
[1772938732956,5.15042149,1941.6,1940.5,1.75974225]
[1772938732957,1.28772919,1941.5,1940.5,1.75974225]
[1772938733166,1.28772919,1941.5,1940.7,1.75974225]
[1772938733854,5.14989363,1941.8,1940.8,1.75974225]
[1772938733855,1.28753154,1941.7,1940.8,1.75974225]
[1772938734175,1.28887258,1942.0,1940.8,1.75974225]
[1772938734985,0.00153886,1942.0,1940.8,1.75974225]
[1772938736055,0.00153886,1942.0,1941.0,1.75974225]
[1772938738258,0.00153886,1942.0,1941.2,1.75974225]
[1772938738579,0.00153886,1942.0,1941.4,1.75974225]
[1772938740085,0.00153886,1942.0,1941.1,1.28792952]
[1772938740086,1.87664944,1942.0,1941.5,1.221]
[1772938740776,1.87664944,1942.0,1941.5,2.508614]
[1772938741382,0.00153886,1942.0,1941.6,1.75974225]
[1772938742100,3.16208959,1942.6,1941.6,1.75974225]
[1772938742987,3.16208959,1942.6,1941.7,1.28753154]
[1772938743186,3.16208959,1942.6,1941.7,3.09063825]
[1772938744384,3.16208959,1942.6,1941.8,1.80310671]
[1772938745188,3.16208959,1942.6,1941.9,1.28739893]
[1772938747591,1.87511058,1942.6,1941.9,1.80310671]
[1772938747896,1.63236563,1942.7,1941.9,1.80310671]
[1772938749317,0.34545065,1942.7,1941.9,1.80310671]
[1772938749596,1.80938741,1942.6,1941.9,3.0904408]
[1772938749799,1.63232623,1942.7,1942.0,1.80310671]
[1772938749999,1.63232623,1942.7,1942.1,1.228]
[1772938750569,0.34545065,1942.7,1942.2,1.80310671]
[1772938751329,1.63232002,1942.7,1942.1,1.228]
[1772938751475,3.44170743,1942.7,1942.2,1.28720008]
[1772938751680,1.80938741,1942.6,1942.1,1.228]
[1772938751880,1.80938741,1942.6,1941.9,5.14957297]
[1772938751881,1.80938741,1942.6,1941.4,1.80310671]
[1772938752128,1.80938741,1942.6,1941.5,1.228]
[1772938752285,1.80938741,1942.6,1941.6,1.228]
[1772938753334,1.80938741,1942.4,1941.5,1.229]
[1772938753616,1.80938741,1942.2,1941.5,2.51661139]
[1772938753990,1.80938741,1942.2,1941.8,0.0011]
[1772938755714,3.09665377,1942.1,1941.8,0.0011]
[1772938755910,1.80938741,1942.2,1941.8,0.0011]
[1772938756127,1.80938741,1942.4,1941.8,0.0011]
[1772938758120,1.80938741,1942.2,1941.8,0.0011]
[1772938759146,1.28713381,1942.3,1941.8,0.0011]
[1772938761895,1.81038741,1942.6,1941.8,1.80420671]
[1772938762099,3.0973609,1942.6,1941.8,1.80420671]
[1772938762609,1.80938741,1942.5,1941.8,1.80420671]
[1772938763228,1.80938741,1942.5,1941.8,3.0916653]
[1772938763229,3.09645495,1942.4,1941.8,3.0916653]
[1772938764999,1.80938741,1942.4,1941.8,3.0916653]
[1772938765196,3.09650577,1942.4,1941.8,3.0916653]
[1772938765395,3.09650577,1942.4,1941.9,1.229]
[1772938767029,3.09650577,1942.4,1941.8,3.09166023]
[1772938767030,1.28711836,1942.4,1941.8,3.09166023]
[1772938768431,1.28711836,1942.4,1941.9,1.228]
[1772938768729,1.28711836,1942.4,1941.9,3.03220671]
[1772938769028,0.001,1942.3,1941.9,3.03220671]
[1772938769601,0.001,1942.3,1941.9,4.31960452]
[1772938769813,0.001,1942.3,1941.9,3.03220671]
[1772938770010,0.001,1942.3,1941.9,4.31959843]
[1772938770518,1.81038741,1942.3,1941.9,1.2291]
[1772938770921,0.001,1942.3,1941.9,4.31956022]
[1772938772135,0.001,1942.3,1942.0,1.80310671]
[1772938774634,0.001,1942.3,1942.0,3.09042682]
[1772938775139,0.001,1942.3,1941.9,2.51646108]
[1772938776841,0.001,1942.3,1941.9,4.32275462]
[1772938777218,1.69542129,1942.2,1941.8,0.0011]
[1772938778108,0.001,1942.3,1941.9,1.80629354]
[1772938778844,0.001,1942.3,1942.0,1.28733264]
[1772938780633,0.001,1942.3,1942.0,3.09362618]
[1772938781334,0.001,1942.3,1942.0,1.28733264]
[1772938781526,0.001,1942.3,1941.9,1.28735548]
[1772938781934,0.001,1942.3,1942.0,1.80629354]
[1772938782145,0.001,1942.3,1942.1,1.228]
[1772938782838,0.001,1942.2,1942.1,1.228]
[1772938784259,0.001,1942.2,1942.1,2.51526636]
[1772938785475,0.001,1942.6,1942.1,4.3215599]
[1772938785835,1.69642129,1942.6,1942.1,4.3215599]
[1772938787854,2.98339298,1942.6,1942.1,4.3215599]
[1772938788869,1.69542129,1942.5,1942.1,1.228]
[1772938789554,1.69542129,1942.5,1941.9,3.09476204]
[1772938789763,1.69542129,1942.5,1942.0,1.231]
[1772938790667,2.98248883,1942.4,1942.0,1.231]
[1772938791037,1.69542129,1942.3,1942.0,1.231]
[1772938792970,1.69542129,1942.5,1942.1,1.231]
[1772938793174,0.001,1942.6,1942.2,1.80629354]
[1772938793877,1.28793871,1942.6,1942.2,1.80629354]
[1772938794248,2.98336,1942.6,1942.1,1.231]
[1772938794770,2.98336,1942.6,1942.2,1.28720008]
[1772938795251,2.98336,1942.6,1942.1,2.5182126]
[1772938795869,1.69542129,1942.5,1942.1,1.231]
[1772938796547,1.69542129,1942.5,1942.2,0.0011]
[1772938796748,1.69542129,1942.5,1941.9,5.15068728]
[1772938796749,1.69542129,1942.3,1941.9,1.2331]
[1772938797181,1.69542129,1942.3,1942.0,0.0011]
[1772938798593,0.001,1942.4,1942.0,1.80739354]
[1772938798749,0.001,1942.4,1942.0,3.09470668]
[1772938799448,0.001,1942.4,1942.0,3.09471348]
[1772938799650,0.001,1942.4,1942.1,1.80629354]
[1772938799978,0.001,1942.4,1942.0,1.28841994]
[1772938800200,0.001,1942.4,1942.1,1.80629354]
[1772938800881,0.001,1942.4,1942.2,1.233]
[1772938801066,1.69642129,1942.4,1942.0,0.0011]
[1772938801273,1.69642129,1942.4,1942.1,1.233]
[1772938801658,1.69642129,1942.4,1941.7,0.0011]
[1772938801864,0.001,1942.4,1941.8,1.80849354]
[1772938802182,0.001,1942.4,1942.0,1.80629354]
[1772938802474,0.001,1942.4,1942.1,1.233]
[1772938803077,0.001,1942.4,1942.1,2.52026291]
[1772938803484,0.001,1942.4,1942.2,0.0022]
[1772938805170,0.001,1942.4,1942.2,1.2352]
[1772938805573,1.68747944,1942.4,1942.2,1.2352]
[1772938806168,1.68747944,1942.4,1942.2,1.233]
[1772938807071,1.28713381,1942.3,1942.0,1.233]
[1772938807586,1.68647944,1942.2,1942.0,1.233]
[1772938807804,1.68647944,1942.2,1941.6,0.0011]
[1772938809059,1.28733264,1942.0,1941.7,0.0011]
[1772938809263,2.97378657,1942.1,1941.7,0.0022]
[1772938809468,1.28730713,1942.1,1941.8,0.0022]
[1772938809884,2.97378657,1942.1,1941.8,0.0022]
[1772938810556,1.28730713,1942.1,1941.8,0.0022]
[1772938810763,1.68647944,1942.0,1941.7,0.0011]
[1772938810964,1.68647944,1942.0,1941.7,0.0033]
[1772938811485,2.97387031,1942.0,1941.7,0.0011]
[1772938811718,2.97387031,1942.0,1941.8,0.0022]
[1772938812166,1.68647944,1941.9,1941.7,0.0011]
[1772938812366,1.68647944,1941.9,1941.7,0.0033]
[1772938812967,1.68647944,1941.9,1941.6,0.0011]
[1772938813573,2.97390489,1941.9,1941.6,0.0011]
[1772938814387,1.28742545,1941.9,1941.6,0.0011]
[1772938814692,1.68647944,1941.8,1941.6,0.0011]
[1772938815397,1.68647944,1941.8,1941.5,0.0011]
[1772938815596,1.28753154,1941.7,1941.5,0.0011]
[1772938815797,1.68647944,1941.6,1941.5,0.0011]
[1772938816517,5.12738667,1942.0,1941.5,0.0011]
[1772938816808,1.28818194,1942.3,1941.7,1.64987729]
[1772938817868,0.001,1942.3,1941.8,1.64987729]
[1772938818365,1.68647944,1942.2,1941.6,1.218]
[1772938819698,1.68647944,1942.2,1941.5,1.65097729]
[1772938819896,1.68647944,1942.2,1941.5,2.93862422]
[1772938819897,2.9737458,1942.1,1941.5,2.93862422]
[1772938820117,2.9737458,1942.1,1941.5,2.93861192]
[1772938820980,0.001,1942.3,1941.6,1.64987729]
[1772938821292,0.001,1942.3,1941.8,1.64987729]
[1772938821293,1.28814544,1942.3,1941.8,1.64987729]
[1772938821488,0.001,1942.3,1941.8,1.64987729]
[1772938821803,1.28813611,1942.3,1941.8,1.64987729]
[1772938822106,0.001,1942.3,1941.8,2.93728111]
[1772938823913,0.001,1942.3,1941.8,1.64987729]
[1772938824290,0.001,1942.3,1941.9,1.64987729]
[1772938824788,0.001,1942.3,1941.9,2.87387729]
[1772938825175,0.001,1942.3,1942.0,1.64987729]
[1772938826219,0.001,1942.3,1941.8,1.64987729]
[1772938827083,0.001,1942.6,1942.0,1.64987729]
[1772938827279,0.001,1942.8,1941.8,1.64987729]
[1772938828278,0.35583589,1943.1,1942.2,1.64987729]
[1772938828479,1.68647944,1943.7,1942.4,1.64987729]
[1772938828480,1.28631579,1943.6,1942.4,1.64987729]
[1772938828716,1.28610777,1943.9,1942.4,1.64987729]
[1772938829307,1.68647944,1943.8,1942.4,1.64987729]
[1772938829513,1.68647944,1943.8,1942.6,1.64987729]
[1772938830314,1.68647944,1943.5,1942.6,4.15381213]
[1772938830527,1.68647944,1943.5,1942.3,1.64987729]
[1772938830734,1.68647944,1943.5,1942.3,4.14600421]
[1772938831096,1.68647944,1943.5,1942.4,1.64987729]
[1772938832221,1.28640526,1943.4,1942.5,1.28700128]
[1772938832400,2.9728847,1943.4,1942.6,1.64987729]
[1772938832824,2.9738847,1943.4,1942.6,1.64987729]
[1772938833013,2.9738847,1943.4,1942.7,2.89918249]
[1772938833521,1.64748955,1943.3,1942.5,1.68718249]
[1772938834303,5.14604589,1943.3,1942.6,1.68718249]
[1772938834513,1.28647146,1943.3,1942.6,1.68718249]
[1772938835335,2.93396101,1943.3,1942.6,1.68718249]
[1772938836303,1.28660388,1943.1,1942.5,1.216]
[1772938836705,2.93409343,1943.1,1942.5,2.90318249]
[1772938837624,1.64748955,1943.0,1942.4,1.217]
[1772938838423,1.28673632,1942.9,1942.4,1.217]
[1772938838631,1.28667527,1943.0,1942.5,1.68718249]
[1772938838826,1.64748955,1943.3,1942.5,1.68718249]
[1772938839010,1.28653766,1943.2,1942.5,1.68718249]
[1772938839327,0.001,1943.4,1942.5,1.68718249]
[1772938839547,1.28745064,1943.4,1942.5,1.68718249]
[1772938839756,0.001,1943.4,1942.5,1.68718249]
[1772938840023,1.28619627,1943.8,1942.5,1.68718249]
[1772938840228,1.28612376,1943.9,1942.5,1.68718249]
[1772938840424,5.14568255,1944.0,1942.7,1.68718249]
[1772938840728,5.13281519,1944.0,1942.7,1.68718249]
[1772938840923,1.28600823,1944.0,1943.1,1.68718249]
[1772938841130,1.28600823,1944.0,1943.3,1.68718249]
[1772938841699,1.65234901,1944.1,1943.3,1.68718249]
[1772938842012,1.65235098,1944.1,1943.3,1.68718249]
[1772938842427,0.36640411,1944.1,1943.5,1.68718249]
[1772938842731,1.65234732,1944.1,1943.5,1.68718249]
[1772938842928,0.36640411,1944.1,1943.5,1.68718249]
[1772938843129,1.65235207,1944.1,1943.5,1.68718249]
[1772938844506,0.001,1944.0,1943.5,2.97351031]
[1772938846037,0.001,1944.0,1943.6,1.68718249]
[1772938846539,0.001,1944.0,1943.6,2.97343621]
[1772938847242,1.28588366,1944.2,1943.7,1.68718249]
[1772938848735,1.28574367,1944.4,1943.7,1.68718249]
[1772938848948,1.28574367,1944.4,1943.7,2.97337328]
[1772938849148,1.28574367,1944.4,1943.7,2.97337944]
[1772938849345,1.28574367,1944.4,1943.8,1.68718249]
[1772938849540,1.28574367,1944.4,1943.8,2.90818249]
[1772938850652,1.28574367,1944.4,1943.9,1.68718249]
[1772938850851,1.28574367,1944.4,1943.9,2.97325203]